fUSD/lending_fUSD_20241225
["ID","MTS","AMOUNT","RATE_DAILY","PERIOD"]
[346606369,1735124041006,-664.24,0.00012385,2]
[346606370,1735124041015,-500.0,0.00012385,2]
[346606371,1735124041024,-500.0,0.00012385,2]
[346606372,1735124041035,-1651.33,0.00012385,2]
[346606373,1735124041044,-595.16,0.00012385,2]
[346606374,1735124041053,-1183.03,0.00012385,2]
[346606375,1735124041063,-232.43358378,0.00012385,2]
[346606376,1735124041073,-741.31,0.00012385,2]
[346606377,1735124041083,-1297.69,0.00012385,2]
[346606378,1735124041093,-2725.44,0.00012385,2]
[346606379,1735124041107,-1159.71,0.00012385,2]
[346606380,1735124041116,-1142.25,0.00012385,2]
[346606381,1735124041126,-1427.37,0.00012385,2]
[346606382,1735124041137,-507.68,0.00012385,2]
[346606383,1735124041148,-812.86,0.00012385,2]
[346606384,1735124041157,-630.14123409,0.00012385,2]
[346606385,1735124041167,-500.0,0.00012385,2]
[346606386,1735124041177,-1108.97,0.00012385,2]
[346606387,1735124041186,-500.0,0.00012385,2]
[346606388,1735124041196,-1679.76,0.00012385,2]
[346606389,1735124041205,-757.33,0.00012385,2]
[346606390,1735124041214,-670.49,0.00012385,2]
[346606391,1735124041224,-500.0,0.00012385,2]
[346606392,1735124041237,-673.55,0.00012385,2]
[346606393,1735124041247,-500.0,0.00012385,2]
[346606394,1735124041256,-881.61,0.00012385,2]
[346606395,1735124041370,-659.9,0.00012385,2]
[346606396,1735124041395,-500.0,0.00012385,2]
[346606397,1735124041404,-500.0,0.00012385,2]
[346606398,1735124041415,-500.0,0.00012385,2]
[346606399,1735124041427,-1334.65,0.00012385,2]
[346606400,1735124041437,-809.37,0.00012385,2]
[346606401,1735124041447,-500.0,0.00012385,2]
[346606402,1735124041457,-500.0,0.00012385,2]
[346606403,1735124041468,-1767.33,0.00012385,2]
[346606404,1735124041477,-606.64,0.00012385,2]
[346606405,1735124041488,-500.0,0.00012385,2]
[346606406,1735124041499,-1231.6,0.00012385,2]
[346606407,1735124041509,-201.72082578,0.00012385,2]
[346606408,1735124041520,-1307.03,0.00012385,2]
[346606409,1735124041531,-500.0,0.00012385,2]
[346606410,1735124041541,-687.97,0.00012385,2]
[346606411,1735124041551,-552.67,0.00012385,2]
[346606412,1735124041560,-500.0,0.00012385,2]
[346606413,1735124041571,-1249.86,0.00012385,2]
[346606414,1735124041581,-1284.88,0.00012385,2]
[346606415,1735124041591,-1100.64,0.00012385,2]
[346606416,1735124041603,-492.00525773,0.00012385,2]
[346606417,1735124041612,-850.42,0.00012385,2]
[346606418,1735124041622,-500.0,0.00012385,2]
[346606419,1735124041632,-500.0,0.00012385,2]
[346606420,1735124041641,-994.82,0.00012385,2]
[346606421,1735124041651,-500.0,0.00012385,2]
[346606422,1735124041661,-1496.34,0.00012385,2]
[346606423,1735124041671,-817.31,0.00012385,2]
[346606424,1735124041680,-712.14,0.00012385,2]
[346606425,1735124041690,-1209.55,0.00012385,2]
[346606426,1735124041700,-1201.37,0.00012385,2]
[346606427,1735124041710,-500.0,0.00012385,2]
[346606428,1735124041719,-513.01,0.00012385,2]
[346606429,1735124041729,-564.37,0.00012385,2]
[346606430,1735124041738,-1231.95,0.00012385,2]
[346606431,1735124041748,-1142.83,0.00012385,2]
[346606432,1735124041758,-770.51,0.00012385,2]
[346606433,1735124041768,-548.91,0.00012385,2]
[346606434,1735124041778,-1081.6,0.00012385,2]
[346606435,1735124041787,-1858.46,0.00012385,2]
[346606436,1735124041802,-500.0,0.00012385,2]
[346606437,1735124041812,-500.0,0.00012385,2]
[346606438,1735124041822,-1306.98,0.00012385,2]
[346606439,1735124041832,-500.0,0.00012385,2]
[346606440,1735124041841,-500.0,0.00012385,2]
[346606441,1735124041853,-2452.91,0.00012385,2]
[346606442,1735124041863,-1048.75,0.00012385,2]
[346606443,1735124041873,-1263.71,0.00012385,2]
[346606444,1735124041883,-500.0,0.00012385,2]
[346606445,1735124041892,-604.41,0.00012385,2]
[346606446,1735124041902,-500.0,0.00012385,2]
[346606447,1735124041912,-1520.77,0.00012385,2]
[346606448,1735124041922,-1970.0,0.00012385,2]
[346606449,1735124041932,-823.95,0.00012385,2]
[346606450,1735124041941,-500.0,0.00012385,2]
[346606451,1735124041951,-500.0,0.00012385,2]
[346606452,1735124041961,-1359.23,0.00012385,2]
[346606453,1735124041970,-1156.27,0.00012385,2]
[346606454,1735124041980,-500.0,0.00012385,2]
[346606455,1735124041991,-500.0,0.00012385,2]
[346606456,1735124042001,-513.31,0.00012385,2]
[346606457,1735124042010,-639.03,0.00012385,2]
[346606458,1735124042020,-1839.64,0.00012385,2]
[346606459,1735124042030,-1260.21,0.00012385,2]
[346606460,1735124042040,-1817.61,0.00012385,2]
[346606461,1735124042050,-500.0,0.00012385,2]
[346606462,1735124042059,-950.77,0.00012385,2]
[346606463,1735124042069,-1170.85,0.00012385,2]
[346606464,1735124042078,-500.0,0.00012385,2]
[346606465,1735124042089,-1838.6,0.00012385,2]
[346606466,1735124042101,-500.0,0.00012385,2]
[346606467,1735124042111,-2502.46,0.00012385,2]
[346606468,1735124042120,-1400.43,0.00012385,2]
[346606469,1735124042130,-801.56,0.00012385,2]
[346606470,1735124042140,-1319.87,0.00012385,2]
[346606471,1735124042150,-1580.81,0.00012385,2]
[346606472,1735124042160,-1080.44,0.00012385,2]
[346606473,1735124042170,-538.39,0.00012385,2]
[346606474,1735124042180,-1792.59,0.00012385,2]
[346606475,1735124042190,-697.81,0.00012385,2]
[346606476,1735124042200,-500.0,0.00012385,2]
[346606477,1735124042210,-1539.71,0.00012385,2]
[346606478,1735124042220,-548.66,0.00012385,2]
[346606479,1735124042230,-1862.08,0.00012385,2]
[346606480,1735124042239,-2758.57,0.00012385,2]
[346606481,1735124042249,-1444.61,0.00012385,2]
[346606482,1735124042259,-607.64,0.00012385,2]
[346606483,1735124042269,-342.32966108,0.00012385,2]
[346606484,1735124042278,-1802.49,0.00012385,2]
[346606485,1735124042288,-500.0,0.00012385,2]
[346606486,1735124042298,-1569.27,0.00012385,2]
[346606487,1735124042307,-1142.88,0.00012385,2]
[346606488,1735124042317,-672.98,0.00012385,2]
[346606489,1735124042327,-1200.5,0.00012385,2]
[346606490,1735124042336,-657.26,0.00012385,2]
[346606491,1735124042346,-500.0,0.00012385,2]
[346606492,1735124042357,-524.08,0.00012385,2]
[346606493,1735124042367,-1063.48,0.00012385,2]
[346606494,1735124042377,-500.0,0.00012385,2]
[346606495,1735124042386,-500.0,0.00012385,2]
[346606496,1735124042396,-1438.42,0.00012385,2]
[346606497,1735124042406,-500.0,0.00012385,2]
[346606498,1735124042416,-1068.24,0.00012385,2]
[346606499,1735124042429,-871.52,0.00012385,2]
[346606500,1735124042438,-2339.81,0.00012385,2]
[346606501,1735124042448,-500.0,0.00012385,2]
[346606502,1735124042458,-1694.59,0.00012385,2]
[346606503,1735124042468,-1519.96,0.00012385,2]
[346606504,1735124042478,-865.12,0.00012385,2]
[346606505,1735124042488,-2752.14,0.00012385,2]
[346606506,1735124042498,-1184.21,0.00012385,2]
[346606507,1735124042508,-501.18,0.00012385,2]
[346606508,1735124042519,-1007.58,0.00012385,2]
[346606509,1735124042528,-1068.96,0.00012385,2]
[346606510,1735124042538,-1364.22,0.00012385,2]
[346606511,1735124042549,-843.54,0.00012385,2]
[346606512,1735124042560,-1314.59,0.00012385,2]
[346606513,1735124042570,-2665.45,0.00012385,2]
[346606514,1735124042580,-2254.43,0.00012385,2]
[346606515,1735124042589,-2868.91,0.00012385,2]
[346606516,1735124042602,-961.77,0.00012385,2]
[346606517,1735124042616,-500.0,0.00012385,2]
[346606518,1735124042625,-2900.38,0.00012385,2]
[346606519,1735124042636,-3691.38,0.00012385,2]
[346606520,1735124042650,-992.97,0.00012385,2]
[346606521,1735124042661,-500.0,0.00012385,2]
[346606522,1735124042671,-1365.06,0.00012385,2]
[346606523,1735124042681,-500.0,0.00012385,2]
[346606524,1735124042691,-500.0,0.00012385,2]
[346606525,1735124042701,-500.0,0.00012385,2]
[346606526,1735124042711,-592.61,0.00012385,2]
[346606527,1735124042721,-657.14,0.00012385,2]
[346606528,1735124042731,-1250.87,0.00012385,2]
[346606529,1735124042740,-1651.28,0.00012385,2]
[346606530,1735124042750,-1475.81,0.00012385,2]
[346606531,1735124042759,-500.0,0.00012385,2]
[346606532,1735124042769,-1768.15,0.00012385,2]
[346606533,1735124042779,-949.41,0.00012385,2]
[346606534,1735124042788,-500.0,0.00012385,2]
[346606535,1735124042797,-1216.96,0.00012385,2]
[346606536,1735124042806,-1213.62,0.00012385,2]
[346606537,1735124042816,-755.99,0.00012385,2]
[346606538,1735124042826,-615.43,0.00012385,2]
[346606539,1735124042835,-500.0,0.00012385,2]
[346606540,1735124042844,-500.0,0.00012385,2]
[346606541,1735124042856,-1085.17,0.00012385,2]
[346606542,1735124042866,-1510.59,0.00012385,2]
[346606543,1735124042876,-1431.46,0.00012385,2]
[346606544,1735124042886,-1328.84,0.00012385,2]
[346606545,1735124042896,-2700.17,0.00012385,2]
[346606546,1735124042906,-2119.65,0.00012385,2]
[346606547,1735124042915,-950.7,0.00012385,2]
[346606548,1735124042925,-500.0,0.00012385,2]
[346606549,1735124042935,-1406.12,0.00012385,2]
[346606550,1735124042945,-2748.42,0.00012385,2]
[346606551,1735124042955,-2591.44,0.00012385,2]
[346606552,1735124042966,-538.6,0.00012385,2]
[346606553,1735124042976,-187.8171418,0.00012385,2]
[346606554,1735124042985,-670.11,0.00012385,2]
[346606555,1735124042995,-657.2,0.00012385,2]
[346606556,1735124043005,-1236.04,0.00012385,2]
[346606557,1735124043015,-672.78,0.00012385,2]
[346606558,1735124043024,-782.37,0.00012386,2]
[346606559,1735124043035,-853.27,0.00012386,2]
[346606560,1735124043045,-566.1,0.00012386,2]
[346606561,1735124043055,-1123.54,0.00012386,2]
[346606562,1735124043064,-500.0,0.00012386,2]
[346606563,1735124043075,-500.0,0.00012386,2]
[346606564,1735124043085,-500.0,0.00012386,2]
[346606565,1735124043095,-540.29,0.00012386,2]
[346606566,1735124043106,-500.0,0.00012386,2]
[346606567,1735124043116,-910.07,0.00012386,2]
[346606568,1735124043126,-1034.43,0.00012386,2]
[346606569,1735124043136,-701.77,0.00012386,2]
[346606570,1735124043146,-500.0,0.00012386,2]
[346606571,1735124043157,-500.0,0.00012386,2]
[346606572,1735124043167,-593.72,0.00012386,2]
[346606573,1735124043176,-823.23,0.00012386,2]
[346606574,1735124043187,-561.91,0.00012386,2]
[346606575,1735124043197,-803.22,0.00012386,2]
[346606576,1735124043207,-769.08,0.00012386,2]
[346606577,1735124043217,-505.89,0.00012386,2]
[346606578,1735124043227,-519.4,0.00012386,2]
[346606579,1735124043237,-500.0,0.00012386,2]
[346606580,1735124043248,-500.0,0.00012386,2]
[346606581,1735124043257,-1047.69,0.00012386,2]
[346606582,1735124043267,-500.0,0.00012386,2]
[346606583,1735124043276,-795.42,0.00012386,2]
[346606584,1735124043286,-500.0,0.00012386,2]
[346606585,1735124043296,-791.77,0.00012386,2]
[346606586,1735124043306,-761.95,0.00012386,2]
[346606587,1735124043316,-764.41,0.00012386,2]
[346606588,1735124043325,-668.48,0.00012386,2]
[346606589,1735124043335,-537.41,0.00012386,2]
[346606590,1735124043344,-1164.9,0.00012386,2]
[346606591,1735124043356,-500.0,0.00012386,2]
[346606592,1735124043366,-560.33,0.00012386,2]
[346606593,1735124043376,-500.0,0.00012386,2]
[346606594,1735124043386,-634.6,0.00012386,2]
[346606595,1735124043396,-1047.44,0.00012386,2]
[346606596,1735124043406,-500.0,0.00012386,2]
[346606597,1735124043416,-1008.99,0.00012386,2]
[346606598,1735124043431,-566.07,0.00012386,2]
[346606599,1735124043441,-1350.23,0.00012386,2]
[346606600,1735124043451,-500.0,0.00012386,2]
[346606601,1735124043461,-17517.16411087,0.00012399,2]
[346606602,1735124043472,-17517.16411083,0.00012399,2]
[346606603,1735124043482,-17517.16411083,0.00012399,2]
[346606604,1735124043493,-17517.16411083,0.00012399,2]
[346606605,1735124043506,-17517.16411083,0.00012399,2]
[346606606,1735124043518,-17517.16411083,0.00012399,2]
[346606607,1735124043528,-17517.16411083,0.00012399,2]
[346606608,1735124043538,-17517.16411083,0.00012399,2]
[346606609,1735124043547,-17517.16411083,0.00012399,2]
[346606610,1735124043556,-17517.16411083,0.00012399,2]
[346606611,1735124043566,-10879.64240307,0.00012399,2]
[346606612,1735124043576,-10879.64240307,0.00012399,2]
[346606613,1735124043585,-10879.64240307,0.00012399,2]
[346606614,1735124043595,-1057.0,0.00012475,2]
[346606615,1735124043609,-28179.19616978,0.000125,2]
[346606616,1735124043618,-709.41,0.00012521,2]
[346606617,1735124043628,-528.04,0.00012555,2]
[346606618,1735124043956,-197.64824,0.00012561,2]
[346606619,1735124043966,-209.610587,0.00012561,2]
[346606620,1735124043976,-384.0,0.0001259,2]
[346606621,1735124043987,-1071.41,0.00012653,2]
[346606622,1735124043997,-500.0,0.00012657,2]
[346606623,1735124044008,-629.82,0.00012657,2]
[346606624,1735124044018,-500.0,0.00012657,2]
[346606625,1735124044029,-500.0,0.00012657,2]
[346606626,1735124044039,-500.0,0.00012657,2]
[346606627,1735124044049,-500.0,0.00012657,2]
[346606628,1735124044059,-500.0,0.00012657,2]
[346606629,1735124044070,-500.0,0.00012657,2]
[346606630,1735124044080,-500.0,0.00012657,2]
[346606631,1735124044090,-641.52,0.00012657,2]
[346606632,1735124044103,-2052.61,0.00012657,2]
[346606633,1735124044114,-500.0,0.00012657,2]
[346606634,1735124044125,-724.12,0.00012657,2]
[346606635,1735124044135,-2612.7,0.00012657,2]
[346606636,1735124044146,-2106.94,0.00012657,2]
[346606637,1735124044157,-500.0,0.00012657,2]
[346606638,1735124044166,-500.0,0.00012657,2]
[346606639,1735124044177,-2120.8,0.00012657,2]
[346606640,1735124044187,-8111.62,0.00012657,2]
[346606641,1735124044197,-561.14,0.00012657,2]
[346606642,1735124044208,-500.0,0.00012657,2]
[346606643,1735124044219,-13374.8,0.00012657,2]
[346606644,1735124044229,-895.0,0.00012657,2]
[346606645,1735124044239,-1080.93,0.00012657,2]
[346606646,1735124044249,-500.0,0.00012657,2]
[346606647,1735124044258,-2415.95,0.00012657,2]
[346606648,1735124044268,-1459.4,0.00012657,2]
[346606649,1735124044280,-750.12,0.00012657,2]
[346606650,1735124044290,-503.84,0.00012657,2]
[346606651,1735124044305,-500.0,0.00012657,2]
[346606652,1735124044315,-597.35,0.00012657,2]
[346606653,1735124044325,-3125.5,0.00012657,2]
[346606654,1735124044336,-500.0,0.00012657,2]
[346606655,1735124044346,-9740.89,0.00012657,2]
[346606656,1735124044359,-1791.37,0.00012657,2]
[346606657,1735124044369,-544.59,0.00012657,2]
[346606658,1735124044379,-500.0,0.00012657,2]
[346606659,1735124044389,-1480.26,0.00012657,2]
[346606660,1735124044399,-2382.39,0.00012657,2]
[346606661,1735124044409,-545.41,0.00012657,2]
[346606662,1735124044420,-3850.84,0.00012657,2]
[346606663,1735124044433,-3099.01,0.00012657,2]
[346606664,1735124044443,-1251.08,0.00012657,2]
[346606665,1735124044452,-500.0,0.00012657,2]
[346606666,1735124044463,-1210.33,0.00012657,2]
[346606667,1735124044473,-1763.17,0.00012657,2]
[346606668,1735124044482,-500.0,0.00012657,2]
[346606669,1735124044492,-2069.22,0.00012657,2]
[346606670,1735124044502,-529.58450981,0.00012657,2]
[346606671,1735124044512,-500.0,0.00012657,2]
[346606672,1735124044522,-3442.62,0.00012657,2]
[346606673,1735124044532,-3116.27,0.00012657,2]
[346606674,1735124044542,-1686.02,0.00012657,2]
[346606675,1735124044551,-504.43,0.00012657,2]
[346606676,1735124044561,-500.0,0.00012657,2]
[346606677,1735124044571,-969.87,0.00012657,2]
[346606678,1735124044581,-999.27,0.00012657,2]
[346606679,1735124044591,-917.88,0.00012657,2]
[346606680,1735124044603,-680.31,0.00012657,2]
[346606681,1735124044613,-590.31772739,0.00012657,2]
[346606682,1735124044622,-2615.45,0.00012657,2]
[346606683,1735124044631,-500.0,0.00012657,2]
[346606684,1735124044641,-500.0,0.00012657,2]
[346606685,1735124044651,-1287.66,0.00012657,2]
[346606686,1735124044661,-1076.21,0.00012657,2]
[346606687,1735124044671,-518.82,0.00012657,2]
[346606688,1735124044680,-1147.79,0.00012657,2]
[346606689,1735124044690,-500.0,0.00012657,2]
[346606690,1735124044699,-500.0,0.00012657,2]
[346606691,1735124044709,-729.57,0.00012657,2]
[346606692,1735124044719,-1502.38284,0.00012658,2]
[346606693,1735124044728,-1533.855269,0.00012658,2]
[346606694,1735124044737,-500.0,0.00012658,2]
[346606695,1735124044747,-500.0,0.00012658,2]
[346606696,1735124044756,-177.1792,0.00012658,2]
[346606697,1735124044765,-676.89,0.00012658,2]
[346606698,1735124044775,-716.47,0.00012658,2]
[346606699,1735124044785,-551.85,0.00012658,2]
[346606700,1735124044795,-1052.78,0.00012658,2]
[346606701,1735124044804,-500.0,0.00012658,2]
[346606702,1735124044814,-732.02,0.00012658,2]
[346606703,1735124044824,-805.02,0.00012658,2]
[346606704,1735124044833,-697.15,0.00012658,2]
[346606705,1735124044843,-697.0,0.00012658,2]
[346606706,1735124044854,-539.3,0.00012658,2]
[346606707,1735124044863,-576.97805357,0.00012658,2]
[346606708,1735124044874,-276.51118116,0.00012658,2]
[346606709,1735124044883,-745.04,0.00012658,2]
[346606710,1735124044893,-500.0,0.00012658,2]
[346606711,1735124044903,-903.2,0.00012658,2]
[346606712,1735124044914,-721.38,0.00012658,2]
[346606713,1735124044924,-723.99,0.00012658,2]
[346606714,1735124044934,-500.0,0.00012658,2]
[346606715,1735124044944,-709.41,0.00012658,2]
[346606716,1735124044954,-705.13,0.00012658,2]
[346606717,1735124044964,-500.0,0.00012658,2]
[346606718,1735124044974,-500.0,0.00012658,2]
[346606719,1735124044983,-500.0,0.00012658,2]
[346606720,1735124044993,-500.0,0.00012658,2]
[346606721,1735124045003,-1131.98,0.00012658,2]
[346606722,1735124045013,-725.62,0.00012658,2]
[346606723,1735124045023,-525.72,0.00012658,2]
[346606724,1735124045034,-500.0,0.00012658,2]
[346606725,1735124045044,-500.0,0.00012658,2]
[346606726,1735124045055,-730.72,0.00012658,2]
[346606727,1735124045065,-1070.9,0.00012658,2]
[346606728,1735124045075,-500.0,0.00012658,2]
[346606729,1735124045085,-562.56,0.00012658,2]
[346606730,1735124045095,-500.0,0.00012658,2]
[346606731,1735124045106,-1292.9,0.00012658,2]
[346606732,1735124045116,-564.45,0.00012658,2]
[346606733,1735124045126,-540.14263697,0.00012658,2]
[346606734,1735124045137,-1241.48,0.00012658,2]
[346606735,1735124045147,-926.32,0.00012658,2]
[346606736,1735124045158,-500.0,0.00012658,2]
[346606737,1735124045168,-685.43,0.00012658,2]
[346606738,1735124045178,-672.86,0.00012658,2]
[346606739,1735124045188,-500.0,0.00012658,2]
[346606740,1735124045198,-626.83,0.00012658,2]
[346606741,1735124045208,-1345.93,0.00012658,2]
[346606742,1735124045217,-1089.7,0.00012658,2]
[346606743,1735124045227,-500.0,0.00012658,2]
[346606744,1735124045236,-716.6,0.00012658,2]
[346606745,1735124045246,-7883.29,0.00012658,2]
[346606746,1735124045255,-1161.29,0.00012658,2]
[346606747,1735124045265,-1171.55,0.00012658,2]
[346606748,1735124045275,-801.16,0.00012658,2]
[346606749,1735124045285,-1215.48,0.00012658,2]
[346606750,1735124045294,-1150.96,0.00012658,2]
[346606751,1735124045304,-2469.89,0.00012658,2]
[346606752,1735124045314,-1114.57,0.00012658,2]
[346606753,1735124045324,-1787.54,0.00012658,2]
[346606754,1735124045333,-2092.13,0.00012658,2]
[346606755,1735124045343,-5306.62,0.00012658,2]
[346606756,1735124045356,-2238.42,0.00012658,2]
[346606757,1735124045366,-847.89,0.00012658,2]
[346606758,1735124045376,-3139.07,0.00012658,2]
[346606759,1735124045386,-697.89,0.00012658,2]
[346606760,1735124045396,-1511.98,0.00012658,2]
[346606761,1735124045408,-3688.36,0.00012658,2]
[346606762,1735124045418,-1406.27,0.00012658,2]
[346606763,1735124045432,-2495.17,0.00012658,2]
[346606764,1735124045442,-849.55,0.00012658,2]
[346606765,1735124045452,-6914.7,0.00012658,2]
[346606766,1735124045462,-4144.9,0.00012658,2]
[346606767,1735124045472,-874.8,0.00012658,2]
[346606768,1735124045482,-7260.01,0.00012658,2]
[346606769,1735124045492,-1306.54,0.00012658,2]
[346606770,1735124045503,-1206.36,0.00012658,2]
[346606771,1735124045512,-1168.17,0.00012658,2]
[346606772,1735124045523,-2349.99,0.00012658,2]
[346606773,1735124045533,-1438.68,0.00012658,2]
[346606774,1735124045543,-43437.81,0.00012658,2]
[346606775,1735124045553,-1131.56,0.00012658,2]
[346606776,1735124045563,-1311.66,0.00012658,2]
[346606777,1735124045574,-2124.98,0.00012658,2]
[346606778,1735124045584,-10367.98,0.00012658,2]
[346606779,1735124045593,-856.68,0.00012658,2]
[346606780,1735124045603,-1105.62,0.00012658,2]
[346606781,1735124045613,-2001.96,0.00012658,2]
[346606782,1735124045623,-5827.41,0.00012658,2]
[346606783,1735124045632,-1216.4,0.00012658,2]
[346606784,1735124045642,-2998.6,0.00012658,2]
[346606785,1735124045651,-3041.71,0.00012658,2]
[346606786,1735124045660,-1530.99,0.00012658,2]
[346606787,1735124045670,-4055.75,0.00012658,2]
[346606788,1735124045679,-569.6,0.00012658,2]
[346606789,1735124045689,-1056.71,0.00012658,2]
[346606790,1735124045699,-7602.77,0.00012658,2]
[346606791,1735124045708,-1793.63,0.00012658,2]
[346606792,1735124045718,-3754.5,0.00012658,2]
[346606793,1735124045727,-500.0,0.00012658,2]
[346606794,1735124045737,-2035.37,0.00012658,2]
[346606795,1735124045747,-8203.8,0.00012658,2]
[346606796,1735124045757,-5375.49,0.00012658,2]
[346606797,1735124045766,-1968.75,0.00012658,2]
[346606798,1735124045776,-3917.65,0.00012658,2]
[346606799,1735124045786,-3799.95,0.00012658,2]
[346606800,1735124045796,-4323.49,0.00012658,2]
[346606801,1735124045805,-773.92,0.00012658,2]
[346606802,1735124045815,-5058.49,0.00012658,2]
[346606803,1735124045824,-5283.4,0.00012658,2]
[346606804,1735124045834,-40377.0,0.00012658,2]
[346606805,1735124045844,-1690.11,0.00012658,2]
[346606806,1735124045854,-1222.02,0.00012658,2]
[346606807,1735124045864,-3469.7,0.00012658,2]
[346606808,1735124045874,-4268.74,0.00012658,2]
[346606809,1735124045884,-1352.45,0.00012658,2]
[346606810,1735124045894,-3931.78,0.00012658,2]
[346606811,1735124045904,-6377.29,0.00012658,2]
[346606812,1735124045914,-1434.48,0.00012658,2]
[346606813,1735124045924,-1871.58,0.00012658,2]
[346606814,1735124045934,-4300.66,0.00012658,2]
[346606815,1735124045943,-1079.58,0.00012658,2]
[346606816,1735124045953,-2002.26,0.00012658,2]
[346606817,1735124045963,-556.9,0.00012658,2]
[346606818,1735124045972,-1374.95,0.00012658,2]
[346606819,1735124045982,-687.76,0.00012658,2]
[346606820,1735124045992,-7255.37,0.00012658,2]
[346606821,1735124046002,-975.22,0.00012658,2]
[346606822,1735124046012,-1373.89,0.00012658,2]
[346606823,1735124046022,-5580.34,0.00012658,2]
[346606824,1735124046032,-1241.75,0.00012658,2]
[346606825,1735124046041,-1282.83,0.00012658,2]
[346606826,1735124046051,-590.03,0.00012659,2]
[346606827,1735124046060,-500.0,0.00012659,2]
[346606828,1735124046070,-536.84,0.00012659,2]
[346606829,1735124046079,-500.0,0.00012659,2]
[346606830,1735124046089,-500.0,0.00012659,2]
[346606831,1735124046099,-500.0,0.00012659,2]
[346606832,1735124046110,-500.0,0.00012659,2]
[346606833,1735124046120,-889.26,0.00012659,2]
[346606834,1735124046130,-500.0,0.00012659,2]
[346606835,1735124046140,-623.26,0.00012659,2]
[346606836,1735124046150,-727.06,0.00012659,2]
[346606837,1735124046160,-500.0,0.00012659,2]
[346606838,1735124046170,-528.94,0.00012659,2]
[346606839,1735124046180,-654.6,0.00012659,2]
[346606840,1735124046189,-855.2,0.00012659,2]
[346606841,1735124046199,-500.0,0.00012659,2]
[346606842,1735124046209,-550.85,0.00012659,2]
[346606843,1735124046219,-500.0,0.00012659,2]
[346606844,1735124046229,-500.0,0.00012659,2]
[346606845,1735124046239,-577.68,0.00012659,2]
[346606846,1735124046248,-558.83,0.00012659,2]
[346606847,1735124046258,-523.37,0.00012659,2]
[346606848,1735124046268,-500.0,0.00012659,2]
[346606849,1735124046277,-514.4,0.00012659,2]
[346606850,1735124046287,-516.39,0.00012659,2]
[346606851,1735124046297,-361.98454909,0.00012659,2]
[346606852,1735124046306,-500.0,0.00012659,2]
[346606853,1735124046315,-500.0,0.00012659,2]
[346606854,1735124046325,-1019.21,0.00012659,2]
[346606855,1735124046335,-758.05,0.00012659,2]
[346606856,1735124046344,-578.92,0.00012659,2]
[346606857,1735124046353,-500.0,0.00012659,2]
[346606858,1735124046363,-533.72,0.00012659,2]
[346606859,1735124046439,-500.0,0.00012659,2]
[346606860,1735124046448,-500.0,0.00012659,2]
[346606861,1735124046457,-500.0,0.00012659,2]
[346606862,1735124046466,-500.0,0.00012659,2]
[346606863,1735124046478,-680.69,0.00012659,2]
[346606864,1735124046488,-500.0,0.00012659,2]
[346606865,1735124046497,-500.0,0.00012659,2]
[346606866,1735124046508,-500.0,0.00012659,2]
[346606867,1735124046518,-500.0,0.00012659,2]
[346606868,1735124046527,-300.31718115,0.00012659,2]